Cogmind - Beta 10.2 @@@ ROGUE MODE // 2021.08.17 @ 18:56:42 Player: EyeSayUgh Result: Self-destructed Performance ------------- Evolutions (1) 500 Regions Visited (3) 600 Robots Destroyed (20) 100 Value Destroyed (545) 545 Prototype IDs (3) 60 Alien Tech Used (0) 0 Bonus (0) 0 TOTAL SCORE: 1805 Bonus ------- None Cogmind --------- Core Integrity 182/400 Matter 228/300 Energy 280/280 System Corruption 0% Temperature Cool (15) Movement Core (400) Ox7 Location -9/Storage Parts ------- > --- POWER (1) -------- Heavy Ion Engine > --- PROPULSION (3) --- (None) > --- UTILITY (3) ------ Medium Storage Unit Medium Storage Unit > --- WEAPON (2) ------- (None) > --- INVENTORY (12) --- Cooled Ion Engine Aluminum Leg Aluminum Leg Hover Unit Hover Unit Cooling System Large Battery (300) Large Battery (300) Large Battery (300) Large Battery (300) Hacking Suite Peak State ------------ > --- POWER ------------ Heavy Ion Engine > --- PROPULSION ------- Light Treads Light Treads Light Treads > --- UTILITY ---------- Medium Storage Unit Medium Storage Unit Light Armor Plating > --- WEAPON ----------- Assault Rifle Rocket Launcher > --- INVENTORY -------- Cooled Ion Engine Aluminum Leg Aluminum Leg Hover Unit Hover Unit Cooling System Large Battery Large Battery Large Battery Large Battery Hacking Suite [Rating: 13] Favorites ----------- Power Heavy Ion Engine Engine Heavy Ion Engine Propulsion Light Treads Treads Light Treads Wheel Compact Wheel Utility Medium Storage Unit Storage Medium Storage Unit Protection Light Armor Plating Weapon Assault Rifle Energy Gun EM Pulse Gun Ballistic Gun Assault Rifle Launcher Rocket Launcher Build | -11 -10 -9 -9 ------- Run | Scr Mat Mat Sto Slots Evolved 2 | . . 2 . Power . | . . . . Propulsion 1 | . . 1 . Utility 1 | . . 1 . Weapon . | . . . . Parts Attached 19 | 7 1 1 10 Power 4 | 1 . . 3 Engine 4 | 1 . . 3 Core . | . . . . Reactor . | . . . . Propulsion 7 | 4 1 1 1 Treads 5 | 2 1 1 1 Leg . | . . . . Wheel 2 | 2 . . . Hover . | . . . . Flight . | . . . . Utility 5 | . . . 5 Device . | . . . . Storage 3 | . . . 3 Processor . | . . . . Hackware . | . . . . Protection 2 | . . . 2 Artifact . | . . . . Weapon 3 | 2 . . 1 Energy Gun 1 | 1 . . . Energy Cannon . | . . . . Ballistic Gun 1 | 1 . . . Ballistic Cannon . | . . . . Launcher 1 | . . . 1 Special Weapon . | . . . . Impact Weapon . | . . . . Slashing Weapon . | . . . . Piercing Weapon . | . . . . Special Melee Weapon . | . . . . Unidentified Prototypes 2 | . . . 2 Parts Lost 7 | . . . 7 Power . | . . . . Propulsion 3 | . . . 3 Utility 1 | . . . 1 Weapon 3 | . . . 3 Highest Loss Streak 7 | . . . 7 Average Slot Usage (%) 79 | . 71 66 83 Engine 11 | . 14 11 11 Treads 31 | . 28 33 32 Storage 10 | . . . 15 Protection 2 | . . . 3 Energy Gun 11 | . 14 11 10 Ballistic Gun 11 | . 14 11 10 Naked Turns . | . . . . Heaviest Build 36 | 7 7 7 36 Greatest Support 60 | 40 40 60 60 Greatest Overweight (x) 1 | . . . 1 Average Overweight (x) . | . . . . Largest Inventory Capacity 16 | 4 4 4 16 Average Capacity 7 | 4 4 4 9 Most Carried 12 | 3 4 4 12 Average Carried 6 | 1 3 3 8 Final Capacity 12 | 4 4 4 12 Final Carried 11 | 3 4 4 11 Class Distribution -------------------- 100% | Mutant Dominant Class ---------------- Mutant | -10/Materials Mutant | -9/Materials Mutant | -9/Storage Resources | -11 -10 -9 -9 ----------- Run | Scr Mat Mat Sto Matter Collected 543 | 97 15 60 371 Remotely . | . . . . Salvage Created 702 | . 77 60 565 Parts 40 | . 4 4 32 Haulers Intercepted . | . . . . Recyclers Shooed 4 | . . 1 3 Parts Field Recycled . | . . . . Retrieved Matter . | . . . . Parts Self-Destructed . | . . . . Prevented . | . . . . Kills | -11 -10 -9 -9 ------- Run | Scr Mat Mat Sto Combat Hostiles Destroyed 12 | . . 1 11 Guns 8 | . . 1 7 AOE 4 | . . . 4 Classes Destroyed 6 | . 3 1 2 Worker 3 | . 1 . 2 Recycler 2 | . 1 . 1 Operator 1 | . . . 1 Watcher 2 | . 1 . 1 Grunt 8 | . . . 8 Sentry 4 | . . 1 3 Best Kill Streak 6 | . 3 1 6 Combat Bots Only 4 | . . 1 4 Max Kills in Single Turn 3 | . 3 1 2 Gunslinging . | . . . . Exploded 1 | . . . 1 Melee . | . . . . Uniques/NPCs Destroyed . | . . . . Combat | -11 -10 -9 -9 -------- Run | Scr Mat Mat Sto Damage Taken 1132 | . 39 59 1034 Core 218 | . . 15 203 Absorbed by Shields . | . . . . Core Remaining (%) 100 | 100 100 . . Volleys Fired 66 | . 3 9 54 Largest 2 | . 2 2 2 Hottest 60 | . 60 60 60 Shots Fired 127 | . 6 18 103 Gun 120 | . 6 18 96 Cannon . | . . . . Launcher 7 | . . . 7 Special . | . . . . Kinetic 61 | . 3 9 49 Thermal . | . . . . Explosive 7 | . . . 7 Electromagnetic 59 | . 3 9 47 Robot Hit Streak 19 | . 3 10 19 Robot Miss Streak 6 | . 3 6 4 Penetration Max . | . . . . Secondary Targets 1 | . . . 1 Max Gunslinging Chain 1 | . . . 1 Shots Hit Robots 95 | . 3 13 79 Core Hits 38 | . 3 2 33 Critical Hits . | . . . . Critical Kills . | . . . . Critical Parts Destroyed . | . . . . Melee Attacks . | . . . . Impact . | . . . . Slashing . | . . . . Piercing . | . . . . Sneak Attacks . | . . . . Combat Hostiles . | . . . . Follow-up Attacks . | . . . . Damage Inflicted 1618 | . 145 144 1329 Guns 1038 | . 46 144 848 Cannons . | . . . . Explosions 580 | . 99 . 481 Melee . | . . . . Ramming . | . . . . Kinetic 463 | . . 74 389 Thermal 249 | . 99 . 150 Explosive 331 | . . . 331 Electromagnetic 575 | . 46 70 459 Impact . | . . . . Slashing . | . . . . Piercing . | . . . . Highest Corruption . | . . . . Average Corruption . | . . . . Corruption Purged . | . . . . Overload Shots . | . . . . Overflow Damage 3 | . . . 3 Projectiles . | . . . . Explosions 3 | . . . 3 Melee . | . . . . Knockbacks . | . . . . Impact . | . . . . Kinetic . | . . . . Secondary . | . . . . Self-Inflicted Damage 276 | . 39 . 237 Shots 10 | . 1 . 9 Rammed . | . . . . Targets Rammed . | . . . . Kicked . | . . . . Crushed . | . . . . Highest Temperature 81 | . 12 6 81 Average Temperature 23 | . 12 4 24 Received Heat Transfer 345 | . . 18 327 Siege Activations . | . . . . Robots Corrupted . | . . . . Combat Hostiles . | . . . . Parts Fried . | . . . . Impact Corruptions . | . . . . Robots Melted . | . . . . Combat Hostiles . | . . . . Parts Melted . | . . . . Heat Transferred 400 | . 150 . 250 Parts Sabotaged . | . . . . Parts Stolen . | . . . . Parts Stripped . | . . . . Power Chain Reactions 4 | . 1 . 3 Missiles Intercepted . | . . . . Alert | -11 -10 -9 -9 ------- Run | Scr Mat Mat Sto Peak Influence 209 | . 51 51 209 Initial 21 | . . 21 21 Average 58 | . 26 26 77 Maximum Alert Level 1 | . . . 1 Low Security (%) 99 | 100 100 100 99 Level 1 . | . . . . Level 2 . | . . . . Level 3 . | . . . . Level 4 . | . . . . Level 5 . | . . . . High Security . | . . . . Max Security . | . . . . Squads Dispatched 2 | . . . 2 Investigation . | . . . . Extermination . | . . . . Reinforcement 1 | . . . 1 Assault . | . . . . Garrison 1 | . . . 1 Intercept . | . . . . Construction Impeded . | . . . . Haulers Reinforced . | . . . . Stealth | -11 -10 -9 -9 --------- Run | Scr Mat Mat Sto Distress Signals 3 | . . 1 2 Communications Jammed . | . . . . Distress Signals . | . . . . Times Spotted 28 | . 2 2 24 Peak Tracking Total 5 | . 1 2 5 Tactical Retreats . | . . . . Traps | -11 -10 -9 -9 ------- Run | Scr Mat Mat Sto Traps Triggered . | . . . . Indirectly . | . . . . Trap Hack Attempts . | . . . . Triggered . | . . . . Disarmed . | . . . . Reprogrammed . | . . . . Reused . | . . . . Traps Extracted . | . . . . Installed . | . . . . Triggered . | . . . . Machines | -11 -10 -9 -9 ---------- Run | Scr Mat Mat Sto Machines Disabled 3 | . . . 3 Max in Single Turn 2 | . . . 2 Machines Sabotaged . | . . . . Garrisons Compromised . | . . . . Overloaded Fab Kills . | . . . . Fab Network Shutdowns . | . . . . Hacking | -11 -10 -9 -9 --------- Run | Scr Mat Mat Sto Machines Accessed 4 | . 1 . 3 Terminals 3 | . 1 . 2 Fabricators . | . . . . Repair Stations 1 | . . . 1 Recycling Units . | . . . . Scanalyzers . | . . . . Garrison Access . | . . . . Total Hacks 8 | . 3 . 5 Successful 5 | . 1 . 4 Failed 3 | . 2 . 1 Catastrophic . | . . . . Database Lockouts . | . . . . Manual . | . . . . Terminals 6 | . 3 . 3 Fabricators . | . . . . Repair Stations 2 | . . . 2 Recycling Units . | . . . . Scanalyzers . | . . . . Garrison Access . | . . . . Terminal Hacks 3 | . 1 . 2 Prototype ID Bank 1 | . . . 1 Open Door 1 | . . . 1 Emergency Access Points 1 | . 1 . . Fabricator Hacks . | . . . . Repair Station Hacks 2 | . . . 2 Scan Component 1 | . . . 1 Repair 1 | . . . 1 Recycling Unit Hacks . | . . . . Scanalyzer . | . . . . Garrison Access Hacks . | . . . . Unauthorized Hacks . | . . . . Terminals . | . . . . Fabricators . | . . . . Repair Stations . | . . . . Recycling Units . | . . . . Scanalyzers . | . . . . Garrison Access . | . . . . Data Cores Recovered . | . . . . Used . | . . . . Hacking Detections 3 | . . . 3 Full Trace Events . | . . . . Feedback Events . | . . . . Feedback Blocked . | . . . . Robot Schematics Acquired . | . . . . Robots Built . | . . . . Matter . | . . . . Time . | . . . . Total Robot Build Rating . | . . . . Part Schematics Acquired . | . . . . Parts Built . | . . . . Matter . | . . . . Time . | . . . . Total Part Build Rating . | . . . . Parts Repaired 1 | . . . 1 Time 26 | . . . 26 Parts Recycled . | . . . . Recycled Matter . | . . . . Retrieved Matter . | . . . . Retrieved Components . | . . . . Parts Scanalyzed . | . . . . Part Schematics Acquired . | . . . . Parts Damaged . | . . . . Bothacking | -11 -10 -9 -9 ------------ Run | Scr Mat Mat Sto Used RIF Installer . | . . . . Robots Hacked . | . . . . Non-combat . | . . . . Combat . | . . . . Robot Hacks Applied . | . . . . Relay Couplers Released . | . . . . Robots Rewired . | . . . . Allies Hacked . | . . . . Hacks Repelled . | . . . . Allies | -11 -10 -9 -9 -------- Run | Scr Mat Mat Sto Total Allies . | . . . . Largest Group . | . . . . Highest-Rated Group . | . . . . Highest-Rated Ally . | . . . . Total Orders . | . . . . Ally Attacks . | . . . . Total Damage . | . . . . Kills . | . . . . Allies Corrupted . | . . . . Allies Melted . | . . . . Intel | -11 -10 -9 -9 ------- Run | Scr Mat Mat Sto Robot Analysis Total . | . . . . Derelict Logs Recovered . | . . . . Drone Launches . | . . . . Drone Recoveries . | . . . . Exploration | -11 -10 -9 -9 ------------- Run | Scr Mat Mat Sto Turns Passed 951 | 75 123 121 632 Spaces Moved 412 | 46 68 58 240 Core 3 | 3 . . . Treads 394 | 28 68 58 240 Legs . | . . . . Wheels 15 | 15 . . . Hover . | . . . . Flight . | . . . . Fastest Speed 50 | 50 160 160 160 Average Speed 157 | 130 160 160 160 Slowest Speed 180 | 160 160 160 180 Overloaded Moves . | . . . . Propulsion Burnouts . | . . . . Robots Hopped . | . . . . Cave-ins Triggered . | . . . . Exploration Rate (%) 17 | 3 17 11 39 Regions Visited 3 Branch Regions 1 Pre-discovered Areas . | . . . . Known Exits Taken . | . . . . Unknown Exits Taken 3 | 1 1 1 . Scrap Searched . | . . . . Spaces Dug . | . . . . Terrain Destroyed 68 | . 5 . 63 Melee . | . . . . Projectile . | . . . . AOE 68 | . 5 . 63 Terrain Rammed . | . . . . Walls Destroyed . | . . . . Machines Disabled . | . . . . Actions | -11 -10 -9 -9 --------- Run | Scr Mat Mat Sto Total 584 | 59 76 68 381 Wait 67 | . 4 . 63 Move 409 | 45 67 57 240 Hop . | . . . . Pick Up 17 | 5 1 1 10 Fast Attach 11 | 5 . . 6 Attach 2 | . . 1 1 Detach . | . . . . Swap 6 | 2 1 . 3 Drop 6 | 2 . . 4 Fire 66 | . 3 9 54 Melee . | . . . . Ram . | . . . . Kick . | . . . . Crush . | . . . . Escape Stasis . | . . . . Rewire . | . . . . Trap . | . . . . Miscellaneous . | . . . . Route ------- -11/Scrapyard -10/Materials -9/Materials -9/Storage History --------- Turn | Location | Event 2 | -11/Scrapyard | Met Revision 17 15 | -11/Scrapyard | Discovered new exit (range 15) 76 | -11/Scrapyard | Entered Materials 165 | -10/Materials | Discovered new exit (range 6) 199 | -10/Materials | Entered another Materials area 199 | -9/Materials | Evolved 2 slots: Propulsion x1, Utility x1 313 | -9/Materials | Discovered new exit (range 5) 315 | -9/Materials | Build established: Mutant 320 | -9/Materials | Entered Storage 753 | -9/Storage | Repaired Lgt. Armor Plating 848 | -9/Storage | Garrison activated, responded to threat 949 | -9/Storage | Core integrity fell below 50% 952 | -9/Storage | Self-destructed Last Messages --------------- 00936_ U-05 Engineer builds a Wall. 00936_ W-16 Scout sends out distress signal. 00936_ K-01 Serf collects debris. 00938_ U-05 Engineer lays Concrete. 00938_ Rocket Launcher destroyed. 00939_ The unstable cave ceiling collapses. 00939_ U-05 Engineer lays Concrete. 00939_ Lgt. Treads destroyed. 00939_ Lgt. Armor Plating destroyed. 00940_ K-01 Serf collects debris. 00941_ U-05 Engineer lays Concrete. 00943_ K-01 Serf collects debris. 00943_ U-05 Engineer lays Concrete. 00945_ U-05 Engineer builds a Wall. 00946_ K-01 Serf collects debris. 00946_ U-05 Engineer builds a Wall. 00946_ R-06 Scavenger collects Heat Sink. 00948_ R-06 Scavenger collects Aluminum Leg. 00950_ U-05 Engineer lays Concrete. 00952_ Lgt. Treads destroyed. Map ----- +----------------------------------------------------+ | ?????????????????????????????????? | | ?????????????????????????????????? | | ?????????????????????????????????? | | ?????????????????????????????????? | | ?????????????????????????????????? | | ?????????????????????????????????? | | ?????????????????????????????????? | | ?????????????????????????????????? | | ?????????????????????????????????? | | ?????????????????????????????????? | | ???????????????????????? ???????? | | ???????????????????????? ???????? | | ???????????????????????# ???????? | | ??????????????????????? ???????? | | ??????????????????????? ???????? | | ??????????????????????? ???????? | | ??????????????????????? ???????? | | ???????????????????????# #??????? | | ???????????????????????# #??????? | | ???????????????????????# #??????? | | ???????????????????????# #??????? | | ???????????????????????#YY#??????? | | ???????????????????????# #??????? | | ???????????????????????# r#??????? | | ??????????????????????## ###????? | | ?????????????????????###r@# ###### | | #??????????? ########u # !!!!# | | #??????????# " # | | ???????????# ! !!!!# | | ????????#??# #########u ###? | | #?????#"""### #?????# #u ##??? | | #?????#"R"#?# #?????# #??? | | #??####" "### #?????# r ##??? | | #??# # #????# % #???? | | #### [ """ # #????## Y #???? | | # "" "" # #????# #??? | | #"G % " #????# g ##??? | | # ""% #????# ???? | | #??# % #????# ##??? | | #??# % ###### #???? | | #### # #???? | | %+ # #???? | | #########+ ###### + #???? | | #????### #####??# # #???? | | #####??# ***#??# ##########???? | | ! %#??# ***#??# T????????????? | | ""*##??##T#####??# ##???????????? | | ""[#????###??????""""????????????? | | "" #?????????????????????????????? | | "" #?????????????????????????????? | +----------------------------------------------------+ Best States ------------- Heat Dissipation 28 Energy Generation 14 Energy Capacity 280 Matter Stores 300 Matter Capacity 300 Sight Range 16 Terrain Scan Density 10 Armor Coverage 150 Evasion (%) 42 Recoil Reduction 3 Item Schematics ----------------- None Robot Schematics ------------------ None Fabricated ------------ Nothing Alien Tech Used ----------------- None Achievements -------------- None Challenges ------------ None Game ------ Seed PointyDataAirjet Manual? 0 Play Time 00:20:51 Cumulative 17.7 hours Start 2021.08.17 @ 17:01:53 End 2021.08.17 @ 18:56:42 Sessions 3 Manual Loads 0 Difficulty Rogue Special Mode None Game No. 18 Rogue 18 Adventurer 0 Explorer 0 Win Type - Total 0 Types 0/0/0/0/0/0/0/0/0 Lore% 11 Gallery% 22 Achievement% 15 Wizard Run 0 Options --------- ASCII 0 Keyboard 0 Movement Mouse Keybinds 0 Fullscreen 2 Font 14/SmallcapsGlow Map View 84x54 Tactical HUD 1 Map Filters NONE Filters NONE Steam 1 RUN: 731c59d4-bad5-4489-bd79-eb0b7467d718